[Event "Late-Titled-Tuesday-Blitz-February-13-2024"]
[Site "Chess.com"]
[Date "2024.02.13"]
[Round "3"]
[White "korkmaz16"]
[Black "nindjaxx8"]
[Result "1-0"]
[WhiteElo "2421"]
[BlackElo "2576"]
[TimeControl "180+1"]
[EndTime "14:28:40 PST"]
[Termination "korkmaz16 won on time"]

1. e4 {[%clk 0:02:55]} 1... e6 {[%clk 0:03:00.1]} 2. d4 {[%clk 0:02:50.9]} 2...
d5 {[%clk 0:02:56.1]} 3. e5 {[%clk 0:02:48.6]} 3... c5 {[%clk 0:02:55.8]} 4. c3
{[%clk 0:02:49.2]} 4... Nc6 {[%clk 0:02:42.5]} 5. Nf3 {[%clk 0:02:49.3]} 5...
Qb6 {[%clk 0:02:41.3]} 6. Bd3 {[%clk 0:02:49.6]} 6... Bd7 {[%clk 0:02:39.9]} 7.
dxc5 {[%clk 0:02:48.6]} 7... Bxc5 {[%clk 0:02:39]} 8. b4 {[%clk 0:02:48.7]} 8...
Bxf2+ {[%clk 0:02:38.4]} 9. Ke2 {[%clk 0:02:48.9]} 9... f6 {[%clk 0:01:47]} 10.
exf6 {[%clk 0:02:28.6]} 10... Nxf6 {[%clk 0:01:47.9]} 11. Rf1 {[%clk 0:02:20.8]}
11... e5 {[%clk 0:01:36.2]} 12. Rxf2 {[%clk 0:02:11.3]} 12... e4 {[%clk
0:01:27]} 13. Be3 {[%clk 0:02:11.3]} 13... Qc7 {[%clk 0:01:20.1]} 14. Bc5 {[%clk
0:02:10.7]} 14... O-O-O {[%clk 0:01:13.3]} 15. Nd4 {[%clk 0:02:04.5]} 15...
exd3+ {[%clk 0:01:12.2]} 16. Qxd3 {[%clk 0:02:02.8]} 16... Nxd4+ {[%clk
0:01:12.9]} 17. cxd4 {[%clk 0:01:58.8]} 17... a6 {[%clk 0:01:08]} 18. Nc3 {[%clk
0:01:53.4]} 18... Rhe8+ {[%clk 0:01:06.8]} 19. Kd2 {[%clk 0:01:52.1]} 19... Kb8
{[%clk 0:00:28.6]} 20. Rc1 {[%clk 0:01:49.1]} 20... b6 {[%clk 0:00:17.5]} 21.
Qxa6 {[%clk 0:01:48.4]} 21... bxc5 {[%clk 0:00:17.7]} 22. bxc5 {[%clk
0:01:48.6]} 22... Qb7 {[%clk 0:00:17.7]} 23. Rb1 {[%clk 0:01:47.6]} 23... Qxb1
{[%clk 0:00:16.8]} 24. Nxb1 {[%clk 0:01:47.4]} 24... Ne4+ {[%clk 0:00:17]} 25.
Kc1 {[%clk 0:01:40.5]} 25... Nxf2 {[%clk 0:00:17.1]} 26. Qb6+ {[%clk 0:01:40.6]}
26... Ka8 {[%clk 0:00:15.3]} 27. Qa6+ {[%clk 0:01:40.2]} 27... Kb8 {[%clk
0:00:15.4]} 28. c6 {[%clk 0:01:40.8]} 28... Bxc6 {[%clk 0:00:14.8]} 29. Nc3
{[%clk 0:01:35.5]} 29... Bb7 {[%clk 0:00:14.6]} 30. Qb6 {[%clk 0:01:33.8]} 30...
Rc8 {[%clk 0:00:11.1]} 31. Kb2 {[%clk 0:01:31.7]} 31... Nd3+ {[%clk 0:00:07.8]}
32. Kb3 {[%clk 0:01:31.6]} 32... Rc6 {[%clk 0:00:05.3]} 33. Qb5 {[%clk
0:01:31.5]} 33... Rec8 {[%clk 0:00:04.6]} 34. Nxd5 {[%clk 0:01:30.8]} 34... Nc1+
{[%clk 0:00:04.4]} 35. Kb2 {[%clk 0:01:28.2]} 35... Rc2+ {[%clk 0:00:04.2]} 36.
Kb1 {[%clk 0:01:28.5]} 36... Nxa2 {[%clk 0:00:03.1]} 37. Qb6 {[%clk 0:01:17.4]}
37... R2c6 {[%clk 0:00:03]} 38. Qb3 {[%clk 0:01:14.9]} 38... Nc3+ {[%clk
0:00:03.2]} 39. Nxc3 {[%clk 0:01:14.8]} 39... Rxc3 {[%clk 0:00:04.1]} 40. Qb6
{[%clk 0:01:14.8]} 40... R3c6 {[%clk 0:00:03.7]} 41. Qb4 {[%clk 0:01:14.7]}
41... R6c7 {[%clk 0:00:04.4]} 42. d5 {[%clk 0:01:13.7]} 42... Rd7 {[%clk
0:00:04.2]} 43. Qf4+ {[%clk 0:01:13.7]} 43... Ka8 {[%clk 0:00:03.6]} 44. Qa4+
{[%clk 0:01:13.5]} 44... Kb8 {[%clk 0:00:04.2]} 45. Qxd7 {[%clk 0:01:14]} 45...
Rc7 {[%clk 0:00:04.5]} 46. Qd8+ {[%clk 0:01:14.2]} 46... Rc8 {[%clk 0:00:05.1]}
47. Qd6+ {[%clk 0:01:14.5]} 47... Rc7 {[%clk 0:00:05.7]} 48. Qe5 {[%clk
0:01:14.3]} 48... Bc8 {[%clk 0:00:03.5]} 49. d6 {[%clk 0:01:13.9]} 49... Rd7
{[%clk 0:00:04.1]} 50. Kc2 {[%clk 0:01:10.6]} 50... Kb7 {[%clk 0:00:04.3]} 51.
Qb5+ {[%clk 0:01:08.8]} 51... Ka7 {[%clk 0:00:04.6]} 52. Qc6 {[%clk 0:01:07.2]}
52... Kb8 {[%clk 0:00:04.1]} 53. Kc3 {[%clk 0:01:05.7]} 53... Rb7 {[%clk
0:00:04.2]} 54. Kd4 {[%clk 0:01:04.5]} 54... Bd7 {[%clk 0:00:04.8]} 55. Qc5
{[%clk 0:01:03.2]} 55... Ka8 {[%clk 0:00:04.3]} 56. Qa3+ {[%clk 0:01:02]} 56...
Kb8 {[%clk 0:00:04.6]} 57. Qc5 {[%clk 0:01:02.2]} 57... Ka8 {[%clk 0:00:04.8]}
58. Qg5 {[%clk 0:01:01.2]} 58... g6 {[%clk 0:00:03.5]} 59. Qd8+ {[%clk
0:01:00.5]} 59... Ka7 {[%clk 0:00:04.3]} 60. Ke5 {[%clk 0:01:00.8]} 60... Bb5
{[%clk 0:00:02.1]} 61. Qa5+ {[%clk 0:00:57.2]} 61... Kb8 {[%clk 0:00:02.7]} 62.
h4 {[%clk 0:00:56.3]} 62... Bc6 {[%clk 0:00:02.2]} 63. g4 {[%clk 0:00:56.1]}
63... Bd7 {[%clk 0:00:01.5]} 64. Qd8+ {[%clk 0:00:54.5]} 64... Ka7 {[%clk
0:00:01.4]} 65. h5 {[%clk 0:00:48.4]} 65... Bxg4 {[%clk 0:00:01.4]} 66. Qa5+
{[%clk 0:00:48.5]} 1-0

[Event "Late-Titled-Tuesday-Blitz-February-13-2024"]
[Site "Chess.com"]
[Date "2024.02.13"]
[Round "3"]
[White "OneTrickPony_82"]
[Black "snowlord"]
[Result "1-0"]
[WhiteElo "2582"]
[BlackElo "2851"]
[TimeControl "180+1"]
[EndTime "14:28:41 PST"]
[Termination "OneTrickPony_82 won by checkmate"]

1. d4 {[%clk 0:03:00.9]} 1... d5 {[%clk 0:02:54.2]} 2. c4 {[%clk 0:03:01]} 2...
c6 {[%clk 0:02:54]} 3. Nf3 {[%clk 0:03:01.3]} 3... Nf6 {[%clk 0:02:54.1]} 4.
cxd5 {[%clk 0:03:01.7]} 4... cxd5 {[%clk 0:02:54]} 5. Nc3 {[%clk 0:03:02.4]}
5... Nc6 {[%clk 0:02:54.4]} 6. Bf4 {[%clk 0:03:03.1]} 6... a6 {[%clk 0:02:54.7]}
7. Qb3 {[%clk 0:03:02.4]} 7... Na5 {[%clk 0:02:53.9]} 8. Qc2 {[%clk 0:03:01.8]}
8... g6 {[%clk 0:02:49.2]} 9. e3 {[%clk 0:03:01.3]} 9... Bf5 {[%clk 0:02:49.2]}
10. Bd3 {[%clk 0:03:02]} 10... Bxd3 {[%clk 0:02:48.5]} 11. Qxd3 {[%clk
0:03:02.7]} 11... e6 {[%clk 0:02:47]} 12. O-O {[%clk 0:03:00.5]} 12... Nh5
{[%clk 0:02:31.2]} 13. Be5 {[%clk 0:02:55.3]} 13... f6 {[%clk 0:02:31.4]} 14.
Bg3 {[%clk 0:02:53.9]} 14... Be7 {[%clk 0:02:30.9]} 15. e4 {[%clk 0:02:50.5]}
15... O-O {[%clk 0:02:27.3]} 16. exd5 {[%clk 0:02:49.3]} 16... exd5 {[%clk
0:02:26.8]} 17. Rfe1 {[%clk 0:02:48.3]} 17... Rf7 {[%clk 0:02:20.6]} 18. Re2
{[%clk 0:02:42.2]} 18... Rc8 {[%clk 0:02:16.7]} 19. Rae1 {[%clk 0:02:41.6]}
19... Bb4 {[%clk 0:02:16.5]} 20. Nd2 {[%clk 0:02:10.7]} 20... Kg7 {[%clk
0:02:04.1]} 21. h3 {[%clk 0:01:56]} 21... Nxg3 {[%clk 0:02:01.7]} 22. Qxg3
{[%clk 0:01:56.4]} 22... Nc6 {[%clk 0:01:47.7]} 23. Qd3 {[%clk 0:01:46.7]} 23...
Ne7 {[%clk 0:01:47.7]} 24. Nf1 {[%clk 0:01:41.1]} 24... Bxc3 {[%clk 0:01:39.2]}
25. bxc3 {[%clk 0:01:40.6]} 25... Nf5 {[%clk 0:01:39.8]} 26. Ne3 {[%clk
0:01:19.9]} 26... Nxe3 {[%clk 0:01:39.7]} 27. Rxe3 {[%clk 0:01:20]} 27... Qd7
{[%clk 0:01:28.2]} 28. Qe2 {[%clk 0:01:15.4]} 28... Rc7 {[%clk 0:01:26.3]} 29.
h4 {[%clk 0:01:14.6]} 29... h5 {[%clk 0:01:24.2]} 30. Qd3 {[%clk 0:01:11.6]}
30... Kh7 {[%clk 0:01:06.2]} 31. Re6 {[%clk 0:01:10.8]} 31... Rc6 {[%clk
0:01:02.7]} 32. Re8 {[%clk 0:01:06.3]} 32... Rc8 {[%clk 0:00:58.5]} 33. R8e6
{[%clk 0:01:02.6]} 33... Rc6 {[%clk 0:00:51.5]} 34. Re8 {[%clk 0:01:02.2]} 34...
Qc7 {[%clk 0:00:48.4]} 35. R1e3 {[%clk 0:01:00.4]} 35... Qf4 {[%clk 0:00:44.2]}
36. Rg3 {[%clk 0:00:56.8]} 36... f5 {[%clk 0:00:39.8]} 37. Qe2 {[%clk
0:00:47.5]} 37... Qxh4 {[%clk 0:00:36.2]} 38. Qe5 {[%clk 0:00:38.3]} 38... Qf6
{[%clk 0:00:28.6]} 39. Qxd5 {[%clk 0:00:38.4]} 39... h4 {[%clk 0:00:18.3]} 40.
Rh3 {[%clk 0:00:32.6]} 40... Kg7 {[%clk 0:00:18.8]} 41. Rhe3 {[%clk 0:00:30.2]}
41... Qg5 {[%clk 0:00:13.8]} 42. Qe5+ {[%clk 0:00:26.6]} 42... Qf6 {[%clk
0:00:13.3]} 43. Qb8 {[%clk 0:00:26.5]} 43... Kh7 {[%clk 0:00:12.3]} 44. Rd8
{[%clk 0:00:24]} 44... Rb6 {[%clk 0:00:09.8]} 45. Ree8 {[%clk 0:00:21.8]} 45...
Kh6 {[%clk 0:00:05.6]} 46. Qf4+ {[%clk 0:00:20.2]} 46... g5 {[%clk 0:00:04.4]}
47. Rh8+ {[%clk 0:00:20]} 47... Rh7 {[%clk 0:00:04.5]} 48. Qc7 {[%clk
0:00:16.2]} 48... Qg6 {[%clk 0:00:01.9]} 49. Rxh7+ {[%clk 0:00:15.3]} 49... Qxh7
{[%clk 0:00:02.8]} 50. Qxb6+ {[%clk 0:00:15.6]} 50... Kh5 {[%clk 0:00:03.6]} 51.
Qd6 {[%clk 0:00:15.3]} 51... f4 {[%clk 0:00:04]} 52. Qe5 {[%clk 0:00:15.4]}
52... Qb1+ {[%clk 0:00:04.2]} 53. Kh2 {[%clk 0:00:15]} 53... Qf1 {[%clk
0:00:04.9]} 54. Rh8+ {[%clk 0:00:14.8]} 54... Kg6 {[%clk 0:00:05.5]} 55. Qe6+
{[%clk 0:00:14.8]} 55... Kg7 {[%clk 0:00:05.5]} 56. Qh6+ {[%clk 0:00:14.8]}
56... Kf7 {[%clk 0:00:06.4]} 57. Rf8+ {[%clk 0:00:15.2]} 57... Ke7 {[%clk
0:00:07.3]} 58. Qf6+ {[%clk 0:00:15.6]} 58... Kd7 {[%clk 0:00:08.2]} 59. Rd8+
{[%clk 0:00:15.6]} 59... Kc7 {[%clk 0:00:09.1]} 60. Qd6# {[%clk 0:00:15.9]} 1-0

[Event "Late-Titled-Tuesday-Blitz-February-13-2024"]
[Site "Chess.com"]
[Date "2024.02.13"]
[Round "3"]
[White "DeTimmerman"]
[Black "Hrant_ChessMood"]
[Result "1-0"]
[WhiteElo "2733"]
[BlackElo "2945"]
[TimeControl "180+1"]
[EndTime "14:28:45 PST"]
[Termination "DeTimmerman won by resignation"]

1. b4 {[%clk 0:03:00]} 1... d5 {[%clk 0:02:53.5]} 2. Bb2 {[%clk 0:03:00.1]} 2...
Nf6 {[%clk 0:02:52.9]} 3. e3 {[%clk 0:03:00.3]} 3... Bg4 {[%clk 0:02:50.7]} 4.
Nf3 {[%clk 0:03:00.4]} 4... e6 {[%clk 0:02:50.5]} 5. b5 {[%clk 0:03:00.3]} 5...
Be7 {[%clk 0:02:47.7]} 6. a4 {[%clk 0:02:59.8]} 6... O-O {[%clk 0:02:47.3]} 7.
c4 {[%clk 0:02:59.1]} 7... Nbd7 {[%clk 0:02:40.6]} 8. Be2 {[%clk 0:02:59.1]}
8... Bd6 {[%clk 0:02:34.5]} 9. O-O {[%clk 0:02:56.4]} 9... Qe7 {[%clk 0:02:30]}
10. d4 {[%clk 0:02:55.2]} 10... c6 {[%clk 0:02:22.2]} 11. Nbd2 {[%clk
0:02:53.9]} 11... Ne4 {[%clk 0:02:17.3]} 12. h3 {[%clk 0:02:39.5]} 12... Bh5
{[%clk 0:02:13.5]} 13. Nxe4 {[%clk 0:02:35.7]} 13... dxe4 {[%clk 0:02:13.4]} 14.
Nd2 {[%clk 0:02:36.6]} 14... Bg6 {[%clk 0:02:05.9]} 15. bxc6 {[%clk 0:02:30.2]}
15... bxc6 {[%clk 0:02:05.7]} 16. c5 {[%clk 0:02:31]} 16... Bc7 {[%clk
0:02:02.7]} 17. Nc4 {[%clk 0:02:24.5]} 17... Rab8 {[%clk 0:01:58.5]} 18. f3
{[%clk 0:02:16.6]} 18... Nf6 {[%clk 0:01:54.9]} 19. f4 {[%clk 0:02:12]} 19...
Nd5 {[%clk 0:01:53]} 20. Qd2 {[%clk 0:02:10]} 20... Rb3 {[%clk 0:01:47.9]} 21.
Ra3 {[%clk 0:01:45.8]} 21... Rb4 {[%clk 0:01:36.5]} 22. Bc3 {[%clk 0:01:37.7]}
22... Rb7 {[%clk 0:01:28.5]} 23. Ba5 {[%clk 0:01:32.7]} 23... Rfb8 {[%clk
0:01:23.1]} 24. Bxc7 {[%clk 0:01:23.2]} 24... Qxc7 {[%clk 0:01:24]} 25. Qa5
{[%clk 0:01:18]} 25... Qxa5 {[%clk 0:01:00.5]} 26. Nxa5 {[%clk 0:01:18.9]} 26...
Rc7 {[%clk 0:01:01.4]} 27. Bc4 {[%clk 0:01:11.9]} 27... h5 {[%clk 0:00:42.8]}
28. f5 {[%clk 0:00:55.8]} 28... Bxf5 {[%clk 0:00:32.3]} 29. Nxc6 {[%clk
0:00:55.4]} 29... Rxc6 {[%clk 0:00:21.5]} 30. Bxd5 {[%clk 0:00:55.5]} 30... Rc7
{[%clk 0:00:18.5]} 31. Rb3 {[%clk 0:00:51.9]} 31... Rxb3 {[%clk 0:00:13.5]} 32.
Bxb3 {[%clk 0:00:52.8]} 32... h4 {[%clk 0:00:13.4]} 33. Rb1 {[%clk 0:00:52.9]}
33... Kf8 {[%clk 0:00:12.9]} 34. Bc4 {[%clk 0:00:51.8]} 34... Ke7 {[%clk
0:00:13.2]} 35. Kf2 {[%clk 0:00:51.9]} 35... e5 {[%clk 0:00:12.2]} 36. Bd5
{[%clk 0:00:49.5]} 36... Bd7 {[%clk 0:00:05.9]} 37. a5 {[%clk 0:00:39]} 37... f5
{[%clk 0:00:05.9]} 38. a6 {[%clk 0:00:37.8]} 38... exd4 {[%clk 0:00:04.3]} 39.
exd4 {[%clk 0:00:37.9]} 39... f4 {[%clk 0:00:04.8]} 40. Bxe4 {[%clk 0:00:37.7]}
40... Bc8 {[%clk 0:00:03]} 41. Bb7 {[%clk 0:00:38.1]} 41... Bf5 {[%clk
0:00:02.7]} 42. Re1+ {[%clk 0:00:37.2]} 42... Kf6 {[%clk 0:00:02.8]} 43. Rc1
{[%clk 0:00:30]} 43... Ke6 {[%clk 0:00:01.6]} 44. d5+ {[%clk 0:00:30.3]} 44...
Ke5 {[%clk 0:00:01.7]} 45. d6 {[%clk 0:00:30.2]} 45... Rf7 {[%clk 0:00:01.7]}
46. Rd1 {[%clk 0:00:27.6]} 46... Be6 {[%clk 0:00:01.7]} 47. c6 {[%clk
0:00:27.7]} 47... Bd7 {[%clk 0:00:01.2]} 48. cxd7 {[%clk 0:00:23.8]} 48... Rxd7
{[%clk 0:00:02.1]} 49. Kf3 {[%clk 0:00:24.1]} 49... g5 {[%clk 0:00:02.3]} 50.
Kg4 {[%clk 0:00:24.6]} 50... f3 {[%clk 0:00:01]} 51. Kxf3 {[%clk 0:00:24.6]}
51... Rf7+ {[%clk 0:00:01.3]} 52. Kg4 {[%clk 0:00:25.1]} 52... Rf4+ {[%clk
0:00:01.4]} 53. Kxg5 {[%clk 0:00:25.6]} 53... Rf2 {[%clk 0:00:02.3]} 54. d7
{[%clk 0:00:25.3]} 1-0

[Event "Late-Titled-Tuesday-Blitz-February-13-2024"]
[Site "Chess.com"]
[Date "2024.02.13"]
[Round "3"]
[White "Mariia89"]
[Black "Noki102"]
[Result "1-0"]
[WhiteElo "2246"]
[BlackElo "2525"]
[TimeControl "180+1"]
[EndTime "14:28:48 PST"]
[Termination "Mariia89 won by checkmate"]

1. d4 {[%clk 0:02:59.5]} 1... d5 {[%clk 0:03:00.4]} 2. c4 {[%clk 0:02:59.6]}
2... e6 {[%clk 0:03:00.1]} 3. Nc3 {[%clk 0:02:59.5]} 3... Bb4 {[%clk 0:02:58.6]}
4. Nf3 {[%clk 0:02:57.8]} 4... dxc4 {[%clk 0:02:55.6]} 5. e3 {[%clk 0:02:57.1]}
5... b5 {[%clk 0:02:51.7]} 6. a4 {[%clk 0:02:47.6]} 6... c6 {[%clk 0:02:49.4]}
7. Bd2 {[%clk 0:02:39.7]} 7... Bxc3 {[%clk 0:02:46.6]} 8. Bxc3 {[%clk
0:02:39.8]} 8... Nf6 {[%clk 0:02:39.8]} 9. b3 {[%clk 0:02:30.2]} 9... cxb3
{[%clk 0:02:35.7]} 10. axb5 {[%clk 0:02:28.7]} 10... O-O {[%clk 0:02:32.4]} 11.
Qxb3 {[%clk 0:02:27.9]} 11... Nd5 {[%clk 0:02:23.8]} 12. Bd2 {[%clk 0:02:12.3]}
12... Bd7 {[%clk 0:02:20.7]} 13. e4 {[%clk 0:02:06.6]} 13... Nf6 {[%clk
0:02:18]} 14. e5 {[%clk 0:02:04.2]} 14... Nd5 {[%clk 0:02:14.4]} 15. bxc6 {[%clk
0:01:51.5]} 15... Nxc6 {[%clk 0:02:13.5]} 16. Bd3 {[%clk 0:01:40.8]} 16... a5
{[%clk 0:02:03.6]} 17. Bxh7+ {[%clk 0:01:21]} 17... Kxh7 {[%clk 0:01:53.3]} 18.
Ng5+ {[%clk 0:01:20.5]} 18... Kg6 {[%clk 0:01:41.1]} 19. h4 {[%clk 0:01:04.4]}
19... Rh8 {[%clk 0:00:42.7]} 20. h5+ {[%clk 0:00:57.8]} 20... Rxh5 {[%clk
0:00:26.9]} 21. Rxh5 {[%clk 0:00:55.9]} 21... Nxd4 {[%clk 0:00:25.7]} 22. Qd3+
{[%clk 0:00:24.1]} 22... Nf5 {[%clk 0:00:25.6]} 23. g4 {[%clk 0:00:22.4]} 23...
Nb4 {[%clk 0:00:11.9]} 24. Qe4 {[%clk 0:00:19.9]} 24... Bc6 {[%clk 0:00:10.9]}
25. gxf5+ {[%clk 0:00:12.3]} 25... exf5 {[%clk 0:00:11.8]} 26. Qe2 {[%clk
0:00:07.2]} 26... Nc2+ {[%clk 0:00:07.3]} 27. Kf1 {[%clk 0:00:06.5]} 27... Bb5
{[%clk 0:00:04.1]} 28. Qxb5 {[%clk 0:00:05.3]} 28... Kxh5 {[%clk 0:00:04.3]} 29.
Rc1 {[%clk 0:00:04.4]} 29... Nd4 {[%clk 0:00:03.8]} 30. Qd3 {[%clk 0:00:03.4]}
30... Kg6 {[%clk 0:00:03.9]} 31. Qh3 {[%clk 0:00:03.3]} 31... Qh8 {[%clk
0:00:02.6]} 32. Qg3 {[%clk 0:00:02.9]} 32... f4 {[%clk 0:00:02.4]} 33. Qg2
{[%clk 0:00:02.2]} 33... f3 {[%clk 0:00:02.4]} 34. Nxf3+ {[%clk 0:00:02.4]}
34... Kf5 {[%clk 0:00:02.9]} 35. Nxd4+ {[%clk 0:00:02.5]} 35... Kxe5 {[%clk
0:00:02.5]} 36. Nf3+ {[%clk 0:00:02.6]} 36... Kd6 {[%clk 0:00:03.1]} 37. Ng5
{[%clk 0:00:02.9]} 37... f6 {[%clk 0:00:01.5]} 38. Nf7+ {[%clk 0:00:03.2]} 38...
Ke7 {[%clk 0:00:01.9]} 39. Nxh8 {[%clk 0:00:04.1]} 39... Rxh8 {[%clk 0:00:02.5]}
40. Qe4+ {[%clk 0:00:04.7]} 40... Kf7 {[%clk 0:00:02.9]} 41. Qb7+ {[%clk
0:00:04.9]} 41... Kg8 {[%clk 0:00:03.6]} 42. Qg2 {[%clk 0:00:05.4]} 42... Kh7
{[%clk 0:00:04]} 43. Be3 {[%clk 0:00:06]} 43... Re8 {[%clk 0:00:03.8]} 44. Qh3+
{[%clk 0:00:06.1]} 44... Kg6 {[%clk 0:00:03.3]} 45. Rc4 {[%clk 0:00:06.2]} 45...
a4 {[%clk 0:00:03.5]} 46. Qg4+ {[%clk 0:00:06.7]} 46... Kf7 {[%clk 0:00:03.5]}
47. Rc7+ {[%clk 0:00:07.2]} 47... Re7 {[%clk 0:00:03.4]} 48. Qc4+ {[%clk
0:00:07.7]} 48... Kf8 {[%clk 0:00:03.2]} 49. Rxe7 {[%clk 0:00:08.1]} 49... Kxe7
{[%clk 0:00:04.1]} 50. Qxa4 {[%clk 0:00:08.6]} 50... Kf7 {[%clk 0:00:04.1]} 51.
Qg4 {[%clk 0:00:09.1]} 51... f5 {[%clk 0:00:05]} 52. Qxf5+ {[%clk 0:00:09.1]}
52... Kg8 {[%clk 0:00:05.6]} 53. Qg6 {[%clk 0:00:09.4]} 53... Kh8 {[%clk
0:00:05.3]} 54. Bd4 {[%clk 0:00:08.6]} 54... Kg8 {[%clk 0:00:06.2]} 55. Qxg7#
{[%clk 0:00:08.6]} 1-0

[Event "Late-Titled-Tuesday-Blitz-February-13-2024"]
[Site "Chess.com"]
[Date "2024.02.13"]
[Round "3"]
[White "LyonBeast"]
[Black "Kiborg95"]
[Result "1-0"]
[WhiteElo "3174"]
[BlackElo "2840"]
[TimeControl "180+1"]
[EndTime "14:28:49 PST"]
[Termination "LyonBeast won by resignation"]

1. e4 {[%clk 0:02:55.3]} 1... d6 {[%clk 0:02:49]} 2. d4 {[%clk 0:02:55.4]} 2...
Nf6 {[%clk 0:02:48.9]} 3. Nc3 {[%clk 0:02:56.1]} 3... e5 {[%clk 0:02:49.7]} 4.
dxe5 {[%clk 0:02:56.7]} 4... dxe5 {[%clk 0:02:50.6]} 5. Qxd8+ {[%clk 0:02:57]}
5... Kxd8 {[%clk 0:02:51.5]} 6. Bc4 {[%clk 0:02:57.1]} 6... Ke8 {[%clk
0:02:51.8]} 7. Be3 {[%clk 0:02:51.3]} 7... a6 {[%clk 0:02:35]} 8. f3 {[%clk
0:02:41.5]} 8... Nbd7 {[%clk 0:02:24.4]} 9. Nge2 {[%clk 0:02:39.1]} 9... b5
{[%clk 0:02:19]} 10. Bd5 {[%clk 0:02:37.2]} 10... Nxd5 {[%clk 0:02:13.9]} 11.
Nxd5 {[%clk 0:02:38.1]} 11... Bd6 {[%clk 0:02:13.9]} 12. O-O-O {[%clk
0:02:38.7]} 12... Bb7 {[%clk 0:02:07.6]} 13. Ng3 {[%clk 0:02:36.1]} 13... Bxd5
{[%clk 0:02:07.6]} 14. Rxd5 {[%clk 0:02:35]} 14... g6 {[%clk 0:02:07.6]} 15.
Rhd1 {[%clk 0:02:34.1]} 15... Ke7 {[%clk 0:02:07.8]} 16. Nf1 {[%clk 0:02:19.9]}
16... Rhd8 {[%clk 0:02:03.6]} 17. Bf2 {[%clk 0:02:18.5]} 17... f6 {[%clk
0:01:54.7]} 18. Ne3 {[%clk 0:02:17.3]} 18... Nb6 {[%clk 0:01:50.4]} 19. R5d3
{[%clk 0:02:13.5]} 19... Ke6 {[%clk 0:01:50.7]} 20. c3 {[%clk 0:02:00.2]} 20...
Be7 {[%clk 0:01:46.8]} 21. Nd5 {[%clk 0:01:56.7]} 21... Nxd5 {[%clk 0:01:45.6]}
22. exd5+ {[%clk 0:01:57.6]} 22... Kd7 {[%clk 0:01:45.4]} 23. Kc2 {[%clk
0:01:57.9]} 23... Bd6 {[%clk 0:01:44.4]} 24. a4 {[%clk 0:01:44.7]} 24... f5
{[%clk 0:01:42.6]} 25. h3 {[%clk 0:01:35.8]} 25... Re8 {[%clk 0:01:41.9]} 26.
Re1 {[%clk 0:01:32.8]} 26... e4 {[%clk 0:01:33]} 27. fxe4 {[%clk 0:01:32.5]}
27... Rxe4 {[%clk 0:01:33.9]} 28. Rxe4 {[%clk 0:01:29]} 28... fxe4 {[%clk
0:01:34.8]} 29. Rd1 {[%clk 0:01:28.3]} 29... Rf8 {[%clk 0:01:31.4]} 30. Be3
{[%clk 0:01:28.2]} 30... Bg3 {[%clk 0:01:05.4]} 31. axb5 {[%clk 0:01:25.8]}
31... axb5 {[%clk 0:01:05.5]} 32. Rd4 {[%clk 0:01:24.2]} 32... Rf5 {[%clk
0:00:46.6]} 33. b3 {[%clk 0:01:07.9]} 33... Kd6 {[%clk 0:00:33.5]} 34. c4 {[%clk
0:01:07.7]} 34... bxc4 {[%clk 0:00:33.2]} 35. bxc4 {[%clk 0:01:08.6]} 35... Ke5
{[%clk 0:00:33.9]} 36. Rd1 {[%clk 0:00:59.1]} 36... Rf7 {[%clk 0:00:26.9]} 37.
Bd4+ {[%clk 0:00:56]} 37... Kd6 {[%clk 0:00:26.7]} 38. c5+ {[%clk 0:00:55.8]}
38... Kd7 {[%clk 0:00:22.1]} 39. Be3 {[%clk 0:00:56.2]} 39... Rf5 {[%clk
0:00:20.6]} 40. Kc3 {[%clk 0:00:54.2]} 40... Bf2 {[%clk 0:00:18.7]} 41. Kd4
{[%clk 0:00:50.2]} 41... c6 {[%clk 0:00:18.2]} 42. dxc6+ {[%clk 0:00:41.9]}
42... Kxc6 {[%clk 0:00:19.1]} 43. Kxe4 {[%clk 0:00:41]} 43... Bxe3 {[%clk
0:00:19.2]} 44. Kxe3 {[%clk 0:00:41.9]} 44... Kxc5 {[%clk 0:00:18.8]} 45. Rd7
{[%clk 0:00:35.1]} 45... h5 {[%clk 0:00:18.4]} 46. g3 {[%clk 0:00:29.9]} 46...
g5 {[%clk 0:00:15.6]} 47. Ke4 {[%clk 0:00:26.8]} 47... Rf1 {[%clk 0:00:13.3]}
48. Rd5+ {[%clk 0:00:27]} 48... Kc6 {[%clk 0:00:09.7]} 49. Rxg5 {[%clk
0:00:27.9]} 49... h4 {[%clk 0:00:09.1]} 50. g4 {[%clk 0:00:20.7]} 50... Rh1
{[%clk 0:00:07.2]} 51. Rh5 {[%clk 0:00:19.2]} 51... Rxh3 {[%clk 0:00:07.4]} 52.
Kf5 {[%clk 0:00:19.4]} 52... Kd7 {[%clk 0:00:07]} 53. Kg6 {[%clk 0:00:18.5]}
53... Rh1 {[%clk 0:00:06.1]} 54. g5 {[%clk 0:00:18.4]} 54... h3 {[%clk
0:00:06.7]} 55. Kh7 {[%clk 0:00:16.4]} 55... Ke7 {[%clk 0:00:04]} 56. g6 {[%clk
0:00:16.3]} 56... Kf6 {[%clk 0:00:03.1]} 57. g7 {[%clk 0:00:16.3]} 57... Rg1
{[%clk 0:00:03.4]} 58. g8=Q {[%clk 0:00:16.6]} 1-0